[Event "Titled Tuesday Blitz July 26 Late 2022"]
[White "Martinez Alcantara, Jose Eduardo"]
[Black "Maksimovic, Bojan"]
[WhiteFideId "3805662"]
[BlackFideId "14408120"]
[WhiteElo "2703"]
[BlackElo "2453"]
[Result "1/2-1/2"]
[Round "04"]
[TimeControl "180+1"]
[Date "2022.07.26"]
[WhiteClock "0:00:08"]
[BlackClock "0:00:06"]

1. e4 {[%clk 0:03:00]}  e5 {[%clk 0:02:59]} 2. Nf3 {[%clk 0:03:01]}  Nf6 {[%clk 0:03:00]} 3. d4 {[%clk 0:02:58]}  Nxe4 {[%clk 0:02:59]} 4. Bd3 {[%clk 0:02:58]}  Nc6 {[%clk 0:02:59]} 5. dxe5 {[%clk 0:02:44]}  Nc5 {[%clk 0:02:50]} 6. Bc4 {[%clk 0:02:44]}  d6 {[%clk 0:02:46]} 7. O-O {[%clk 0:02:30]}  Be6 {[%clk 0:02:43]} 8. Bxe6 {[%clk 0:02:28]}  Nxe6 {[%clk 0:02:44]} 9. exd6 {[%clk 0:02:26]}  Bxd6 {[%clk 0:02:43]} 10. Nc3 {[%clk 0:02:24]}  O-O {[%clk 0:02:43]} 11. Be3 {[%clk 0:02:25]}  Bc5 {[%clk 0:02:23]} 12. Bxc5 {[%clk 0:02:16]}  Nxc5 {[%clk 0:02:24]} 13. Qd5 {[%clk 0:02:15]}  Qxd5 {[%clk 0:02:15]} 14. Nxd5 {[%clk 0:02:16]}  Ne6 {[%clk 0:02:16]} 15. Rad1 {[%clk 0:02:15]}  Rfd8 {[%clk 0:02:13]} 16. c3 {[%clk 0:02:09]}  Kf8 {[%clk 0:02:09]} 17. c4 {[%clk 0:01:54]}  Ne7 {[%clk 0:02:00]} 18. g3 {[%clk 0:01:49]}  c6 {[%clk 0:01:56]} 19. Ne3 {[%clk 0:01:49]}  Rxd1 {[%clk 0:01:47]} 20. Rxd1 {[%clk 0:01:50]}  Rd8 {[%clk 0:01:47]} 21. Re1 {[%clk 0:01:50]}  Nd4 {[%clk 0:01:41]} 22. Nxd4 {[%clk 0:01:45]}  Rxd4 {[%clk 0:01:41]} 23. Re2 {[%clk 0:01:44]}  a5 {[%clk 0:01:29]} 24. b3 {[%clk 0:01:40]}  Nc8 {[%clk 0:01:17]} 25. c5 {[%clk 0:01:23]}  a4 {[%clk 0:01:12]} 26. bxa4 {[%clk 0:01:09]}  Rxa4 {[%clk 0:01:13]} 27. Rb2 {[%clk 0:01:09]}  Ra7 {[%clk 0:01:09]} 28. Nc4 {[%clk 0:01:09]}  Ke7 {[%clk 0:01:05]} 29. Re2+ {[%clk 0:01:07]}  Kf8 {[%clk 0:00:56]} 30. Ne5 {[%clk 0:01:01]}  f6 {[%clk 0:00:47]} 31. Nc4 {[%clk 0:00:52]}  Ra4 {[%clk 0:00:40]} 32. Rc2 {[%clk 0:00:52]}  Rb4 {[%clk 0:00:32]} 33. Kg2 {[%clk 0:00:47]}  Ne7 {[%clk 0:00:32]} 34. Nd6 {[%clk 0:00:43]}  b6 {[%clk 0:00:20]} 35. cxb6 {[%clk 0:00:35]}  Rxb6 {[%clk 0:00:21]} 36. a4 {[%clk 0:00:33]}  Ra6 {[%clk 0:00:21]} 37. Ra2 {[%clk 0:00:32]}  Nd5 {[%clk 0:00:21]} 38. a5 {[%clk 0:00:30]}  Ke7 {[%clk 0:00:19]} 39. Nc4 {[%clk 0:00:30]}  Kd7 {[%clk 0:00:12]} 40. Re2 {[%clk 0:00:22]}  Ra8 {[%clk 0:00:09]} 41. h4 {[%clk 0:00:20]}  h5 {[%clk 0:00:07]} 42. Rd2 {[%clk 0:00:20]}  Rb8 {[%clk 0:00:06]} 43. Nb6+ {[%clk 0:00:12]}  Ke6 {[%clk 0:00:06]} 44. Nxd5 {[%clk 0:00:13]}  cxd5 {[%clk 0:00:07]} 45. Ra2 {[%clk 0:00:13]}  Kd6 {[%clk 0:00:04]} 46. a6 {[%clk 0:00:13]}  Ra8 {[%clk 0:00:04]} 47. Kf3 {[%clk 0:00:14]}  Kc5 {[%clk 0:00:05]} 48. Ke3 {[%clk 0:00:14]}  Kc4 {[%clk 0:00:06]} 49. Ra4+ {[%clk 0:00:10]}  Kc3 {[%clk 0:00:06]} 50. Ke2 {[%clk 0:00:04]}  Ra7 {[%clk 0:00:04]} 51. Ra5 {[%clk 0:00:04]}  d4 {[%clk 0:00:03]} 52. Ra3+ {[%clk 0:00:04]}  Kc2 {[%clk 0:00:03]} 53. Ra2+ {[%clk 0:00:03]}  Kc3 {[%clk 0:00:04]} 54. Kd1 {[%clk 0:00:03]}  Kd3 {[%clk 0:00:03]} 55. Ra3+ {[%clk 0:00:04]}  Ke4 {[%clk 0:00:02]} 56. Kd2 {[%clk 0:00:04]}  d3 {[%clk 0:00:03]} 57. Ra4+ {[%clk 0:00:02]}  Kf3 {[%clk 0:00:04]} 58. Kxd3 {[%clk 0:00:02]}  Kxf2 {[%clk 0:00:03]} 59. Kd4 {[%clk 0:00:03]}  Kxg3 {[%clk 0:00:03]} 60. Kc5 {[%clk 0:00:04]}  f5 {[%clk 0:00:03]} 61. Kb6 {[%clk 0:00:04]}  Rxa6+ {[%clk 0:00:03]} 62. Kxa6 {[%clk 0:00:05]}  f4 {[%clk 0:00:04]} 63. Kb5 {[%clk 0:00:03]}  f3 {[%clk 0:00:05]} 64. Ra7 {[%clk 0:00:04]}  f2 {[%clk 0:00:05]} 65. Rxg7+ {[%clk 0:00:04]}  Kxh4 {[%clk 0:00:05]} 66. Rf7 {[%clk 0:00:05]}  Kg3 {[%clk 0:00:06]} 67. Rg7+ {[%clk 0:00:06]}  Kh2 {[%clk 0:00:05]} 68. Rf7 {[%clk 0:00:06]}  Kg2 {[%clk 0:00:06]} 69. Rg7+ {[%clk 0:00:06]}  Kh2 {[%clk 0:00:05]} 70. Rf7 {[%clk 0:00:07]}  Kg2 {[%clk 0:00:06]} 71. Rg7+ {[%clk 0:00:08]}  Kh2 {[%clk 0:00:06]} 1/2-1/2


[Site "https://www.chess.com"]

[Event "Titled Tuesday Blitz July 26 Late 2022"]
[White "Medeiros Jr, Francisco De Assis"]
[Black "Vlassov, Nikolai"]
[WhiteFideId "2114267"]
[BlackFideId "4103360"]
[WhiteElo "2020"]
[BlackElo "2324"]
[Result "1-0"]
[Round "04"]
[TimeControl "180+1"]
[Date "2022.07.27"]
[WhiteClock "0:00:09"]
[BlackClock "0:00:10"]

1. d4 {[%clk 0:03:00]}  Nf6 {[%clk 0:02:59]} 2. Nf3 {[%clk 0:03:01]}  e6 {[%clk 0:02:59]} 3. Bg5 {[%clk 0:03:01]}  h6 {[%clk 0:02:57]} 4. Bh4 {[%clk 0:03:01]}  c5 {[%clk 0:02:57]} 5. c3 {[%clk 0:03:01]}  b6 {[%clk 0:02:57]} 6. Nbd2 {[%clk 0:03:01]}  Bb7 {[%clk 0:02:57]} 7. e3 {[%clk 0:03:00]}  Be7 {[%clk 0:02:57]} 8. Bd3 {[%clk 0:03:00]}  g5 {[%clk 0:02:58]} 9. Bg3 {[%clk 0:03:00]}  g4 {[%clk 0:02:58]} 10. Nh4 {[%clk 0:02:28]}  h5 {[%clk 0:02:58]} 11. O-O {[%clk 0:02:25]}  Ng8 {[%clk 0:02:52]} 12. Be5 {[%clk 0:02:09]}  Rh6 {[%clk 0:02:52]} 13. g3 {[%clk 0:02:06]}  Bxh4 {[%clk 0:02:50]} 14. gxh4 {[%clk 0:02:06]}  Qxh4 {[%clk 0:02:49]} 15. dxc5 {[%clk 0:01:56]}  bxc5 {[%clk 0:02:45]} 16. Bf4 {[%clk 0:01:53]}  Rf6 {[%clk 0:02:27]} 17. Be4 {[%clk 0:01:53]}  d5 {[%clk 0:02:20]} 18. Qb3 {[%clk 0:01:30]}  Bc6 {[%clk 0:02:05]} 19. Bxb8 {[%clk 0:01:28]}  dxe4 {[%clk 0:02:05]} 20. Nc4 {[%clk 0:00:51]}  Ne7 {[%clk 0:01:40]} 21. Na5 {[%clk 0:00:27]}  Qh3 {[%clk 0:01:12]} 22. Nxc6 {[%clk 0:00:22]}  Nxc6 {[%clk 0:01:11]} 23. Qb7 {[%clk 0:00:22]}  Rxb8 {[%clk 0:01:11]} 24. Qxc6+ {[%clk 0:00:21]}  Kf8 {[%clk 0:01:06]} 25. Qxc5+ {[%clk 0:00:21]}  Kg8 {[%clk 0:00:48]} 26. Qe5 {[%clk 0:00:20]}  h4 {[%clk 0:00:27]} 27. Qxf6 {[%clk 0:00:16]}  Rxb2 {[%clk 0:00:14]} 28. Rad1 {[%clk 0:00:16]}  Rb8 {[%clk 0:00:12]} 29. Rd8+ {[%clk 0:00:14]}  Rxd8 {[%clk 0:00:12]} 30. Qxd8+ {[%clk 0:00:15]}  Kg7 {[%clk 0:00:13]} 31. Qg5+ {[%clk 0:00:16]}  Kh7 {[%clk 0:00:13]} 32. Qf4 {[%clk 0:00:13]}  f5 {[%clk 0:00:10]} 33. Rd1 {[%clk 0:00:12]}  Kg6 {[%clk 0:00:10]} 34. Rd6 {[%clk 0:00:09]}  Kf6 {[%clk 0:00:10]} 35. Qh6+ {[%clk 0:00:09]} 1-0


[Site "https://www.chess.com"]

[Event "Titled Tuesday Blitz July 26 Late 2022"]
[White "Mica, Marek"]
[Black "Clawitter, Craig"]
[WhiteFideId "382884"]
[BlackFideId "2023105"]
[WhiteElo "2100"]
[BlackElo "2199"]
[Result "1-0"]
[Round "04"]
[TimeControl "180+1"]
[Date "2022.07.27"]
[WhiteClock "0:00:14"]
[BlackClock "0:00:11"]

1. d4 {[%clk 0:03:00]}  e6 {[%clk 0:03:00]} 2. c4 {[%clk 0:03:00]}  Nf6 {[%clk 0:03:00]} 3. Nf3 {[%clk 0:03:00]}  d5 {[%clk 0:03:00]} 4. g3 {[%clk 0:03:01]}  Be7 {[%clk 0:03:00]} 5. Bg2 {[%clk 0:03:01]}  O-O {[%clk 0:03:00]} 6. O-O {[%clk 0:03:01]}  dxc4 {[%clk 0:03:00]} 7. Qc2 {[%clk 0:03:01]}  a6 {[%clk 0:03:01]} 8. a4 {[%clk 0:03:01]}  Bd7 {[%clk 0:03:00]} 9. Qxc4 {[%clk 0:03:01]}  Bc6 {[%clk 0:02:59]} 10. Bf4 {[%clk 0:03:02]}  Nbd7 {[%clk 0:02:57]} 11. Nc3 {[%clk 0:03:01]}  Nb6 {[%clk 0:02:52]} 12. Qb3 {[%clk 0:03:01]}  a5 {[%clk 0:02:44]} 13. Rfd1 {[%clk 0:02:57]}  Nbd5 {[%clk 0:02:34]} 14. Bd2 {[%clk 0:02:51]}  Nb4 {[%clk 0:02:32]} 15. Rac1 {[%clk 0:02:46]}  Bd6 {[%clk 0:02:06]} 16. Bg5 {[%clk 0:02:41]}  h6 {[%clk 0:02:04]} 17. Bxf6 {[%clk 0:02:40]}  Qxf6 {[%clk 0:02:02]} 18. e4 {[%clk 0:02:41]}  Qg6 {[%clk 0:01:42]} 19. d5 {[%clk 0:02:31]}  exd5 {[%clk 0:01:30]} 20. exd5 {[%clk 0:02:32]}  Bd7 {[%clk 0:01:29]} 21. Nd4 {[%clk 0:02:23]}  Nd3 {[%clk 0:00:56]} 22. Ra1 {[%clk 0:02:02]}  Nc5 {[%clk 0:00:55]} 23. Qc4 {[%clk 0:01:57]}  Rae8 {[%clk 0:00:42]} 24. Ncb5 {[%clk 0:01:52]}  b6 {[%clk 0:00:23]} 25. Nc6 {[%clk 0:01:41]}  Bg4 {[%clk 0:00:13]} 26. Re1 {[%clk 0:01:39]}  Kh7 {[%clk 0:00:09]} 27. Nxd6 {[%clk 0:00:56]}  cxd6 {[%clk 0:00:10]} 28. Qb5 {[%clk 0:00:42]}  Nd3 {[%clk 0:00:07]} 29. Rxe8 {[%clk 0:00:38]}  Rxe8 {[%clk 0:00:08]} 30. Qxb6 {[%clk 0:00:34]}  Re2 {[%clk 0:00:09]} 31. Rf1 {[%clk 0:00:33]}  Rxb2 {[%clk 0:00:06]} 32. Qxa5 {[%clk 0:00:31]}  Be2 {[%clk 0:00:06]} 33. Qc3 {[%clk 0:00:19]}  Bxf1 {[%clk 0:00:06]} 34. Bxf1 {[%clk 0:00:19]}  Rb1 {[%clk 0:00:05]} 35. Kg2 {[%clk 0:00:16]}  Qe4+ {[%clk 0:00:05]} 36. f3 {[%clk 0:00:16]}  Qe1 {[%clk 0:00:05]} 37. Bxd3+ {[%clk 0:00:14]}  g6 {[%clk 0:00:04]} 38. Qxe1 {[%clk 0:00:15]}  Rxe1 {[%clk 0:00:04]} 39. a5 {[%clk 0:00:15]}  Ra1 {[%clk 0:00:04]} 40. a6 {[%clk 0:00:14]}  Kg7 {[%clk 0:00:05]} 41. a7 {[%clk 0:00:13]}  f5 {[%clk 0:00:05]} 42. f4 {[%clk 0:00:13]}  Kf8 {[%clk 0:00:05]} 43. h3 {[%clk 0:00:11]}  Ke8 {[%clk 0:00:06]} 44. g4 {[%clk 0:00:11]}  Kd7 {[%clk 0:00:06]} 45. gxf5 {[%clk 0:00:11]}  gxf5 {[%clk 0:00:07]} 46. Bxf5+ {[%clk 0:00:10]}  Kc7 {[%clk 0:00:08]} 47. Kg3 {[%clk 0:00:11]}  Kb7 {[%clk 0:00:07]} 48. Kg4 {[%clk 0:00:11]}  Rxa7 {[%clk 0:00:07]} 49. Nxa7 {[%clk 0:00:10]}  Kxa7 {[%clk 0:00:08]} 50. Be6 {[%clk 0:00:10]}  Kb6 {[%clk 0:00:09]} 51. f5 {[%clk 0:00:10]}  Kc7 {[%clk 0:00:08]} 52. f6 {[%clk 0:00:11]}  Kd8 {[%clk 0:00:08]} 53. Kh5 {[%clk 0:00:11]}  Ke8 {[%clk 0:00:09]} 54. Kxh6 {[%clk 0:00:12]}  Kf8 {[%clk 0:00:09]} 55. Kg6 {[%clk 0:00:12]}  Ke8 {[%clk 0:00:09]} 56. Kg7 {[%clk 0:00:13]}  Kd8 {[%clk 0:00:10]} 57. f7 {[%clk 0:00:13]}  Kc7 {[%clk 0:00:10]} 58. f8=Q {[%clk 0:00:14]}  Kb6 {[%clk 0:00:11]} 59. Qxd6+ {[%clk 0:00:14]} 1-0


[Site "https://www.chess.com"]

[Event "Titled Tuesday Blitz July 26 Late 2022"]
[White "Mogranzini, Roberto"]
[Black "Leiva, Gianmarco"]
[WhiteFideId "810894"]
[BlackFideId "3804399"]
[WhiteElo "2469"]
[BlackElo "2323"]
[Result "0-1"]
[Round "04"]
[TimeControl "180+1"]
[Date "2022.07.26"]
[WhiteClock "0:00:58"]
[BlackClock "0:00:17"]

1. e4 {[%clk 0:03:00]}  c5 {[%clk 0:02:59]} 2. Nf3 {[%clk 0:03:00]}  d6 {[%clk 0:03:00]} 3. Nc3 {[%clk 0:03:00]}  a6 {[%clk 0:03:00]} 4. a4 {[%clk 0:03:00]}  Nc6 {[%clk 0:03:00]} 5. g3 {[%clk 0:02:59]}  Bg4 {[%clk 0:02:59]} 6. Bg2 {[%clk 0:02:59]}  e6 {[%clk 0:02:59]} 7. h3 {[%clk 0:02:59]}  Bh5 {[%clk 0:02:59]} 8. O-O {[%clk 0:02:58]}  Nf6 {[%clk 0:03:00]} 9. d3 {[%clk 0:02:58]}  Be7 {[%clk 0:02:59]} 10. Ne2 {[%clk 0:02:58]}  d5 {[%clk 0:02:47]} 11. exd5 {[%clk 0:02:56]}  Nxd5 {[%clk 0:02:45]} 12. Nf4 {[%clk 0:02:51]}  Nxf4 {[%clk 0:02:32]} 13. Bxf4 {[%clk 0:02:52]}  O-O {[%clk 0:02:29]} 14. Re1 {[%clk 0:02:51]}  Bf6 {[%clk 0:02:28]} 15. c3 {[%clk 0:02:49]}  Bg6 {[%clk 0:02:16]} 16. Bf1 {[%clk 0:02:48]}  Qd5 {[%clk 0:02:14]} 17. Qe2 {[%clk 0:02:23]}  Rfd8 {[%clk 0:01:58]} 18. Red1 {[%clk 0:02:23]}  b5 {[%clk 0:01:06]} 19. axb5 {[%clk 0:02:20]}  axb5 {[%clk 0:01:07]} 20. Rxa8 {[%clk 0:02:21]}  Rxa8 {[%clk 0:01:08]} 21. Ne1 {[%clk 0:02:21]}  Qd7 {[%clk 0:00:59]} 22. Bg2 {[%clk 0:02:19]}  Ra2 {[%clk 0:00:57]} 23. Bc1 {[%clk 0:02:17]}  Bxc3 {[%clk 0:00:50]} 24. Qf3 {[%clk 0:02:13]}  Nd4 {[%clk 0:00:51]} 25. Qe3 {[%clk 0:01:51]}  Bxb2 {[%clk 0:00:48]} 26. Bxb2 {[%clk 0:01:51]}  Rxb2 {[%clk 0:00:48]} 27. Qe5 {[%clk 0:01:51]}  h5 {[%clk 0:00:26]} 28. Qxc5 {[%clk 0:01:50]}  Ne2+ {[%clk 0:00:23]} 29. Kf1 {[%clk 0:01:44]}  Qd4 {[%clk 0:00:24]} 30. Qxd4 {[%clk 0:01:13]}  Nxd4 {[%clk 0:00:25]} 31. Ra1 {[%clk 0:01:00]}  Kf8 {[%clk 0:00:18]} 32. Ra7 {[%clk 0:01:00]}  Rb1 {[%clk 0:00:17]} 33. Be4 {[%clk 0:00:58]}  Bxe4 {[%clk 0:00:16]} 34. dxe4 {[%clk 0:00:58]}  Nc2 {[%clk 0:00:17]} 0-1


[Site "https://www.chess.com"]

[Event "Titled Tuesday Blitz July 26 Late 2022"]
[White "Mortazavi, Ali"]
[Black "Wagner, Dennis"]
[WhiteFideId "401323"]
[BlackFideId "24650684"]
[WhiteElo "2339"]
[BlackElo "2355"]
[Result "0-1"]
[Round "04"]
[TimeControl "180+1"]
[Date "2022.07.26"]
[WhiteClock "0:00:09"]
[BlackClock "0:00:34"]

1. Nf3 {[%clk 0:02:59]}  g6 {[%clk 0:02:57]} 2. e4 {[%clk 0:02:59]}  Bg7 {[%clk 0:02:58]} 3. d4 {[%clk 0:03:00]}  d6 {[%clk 0:02:58]} 4. Nc3 {[%clk 0:03:00]}  Nf6 {[%clk 0:02:55]} 5. Be3 {[%clk 0:03:00]}  c6 {[%clk 0:02:52]} 6. Qd2 {[%clk 0:02:50]}  b5 {[%clk 0:02:52]} 7. Bd3 {[%clk 0:02:50]}  Nbd7 {[%clk 0:02:46]} 8. Bh6 {[%clk 0:02:42]}  Bxh6 {[%clk 0:02:44]} 9. Qxh6 {[%clk 0:02:41]}  e5 {[%clk 0:02:45]} 10. h3 {[%clk 0:02:31]}  Nh5 {[%clk 0:02:16]} 11. a4 {[%clk 0:02:05]}  b4 {[%clk 0:02:15]} 12. Ne2 {[%clk 0:02:05]}  Qf6 {[%clk 0:02:07]} 13. O-O {[%clk 0:01:33]}  a5 {[%clk 0:02:04]} 14. Rad1 {[%clk 0:01:29]}  Nb6 {[%clk 0:01:51]} 15. b3 {[%clk 0:01:21]}  Bxh3 {[%clk 0:01:40]} 16. dxe5 {[%clk 0:01:21]}  dxe5 {[%clk 0:01:40]} 17. Qe3 {[%clk 0:01:17]}  Bg4 {[%clk 0:01:17]} 18. Qxb6 {[%clk 0:01:05]}  Bxf3 {[%clk 0:01:17]} 19. gxf3 {[%clk 0:01:06]}  Qg5+ {[%clk 0:01:07]} 20. Kh2 {[%clk 0:01:04]}  Qh4+ {[%clk 0:01:06]} 21. Kg2 {[%clk 0:01:05]}  Qg5+ {[%clk 0:01:03]} 22. Ng3 {[%clk 0:00:38]}  Nf4+ {[%clk 0:01:02]} 23. Kg1 {[%clk 0:00:39]}  O-O {[%clk 0:00:58]} 24. Rfe1 {[%clk 0:00:35]}  h5 {[%clk 0:00:57]} 25. Kh2 {[%clk 0:00:15]}  Qh4+ {[%clk 0:00:55]} 26. Kg1 {[%clk 0:00:14]}  Nh3+ {[%clk 0:00:54]} 27. Kf1 {[%clk 0:00:13]}  Nf4 {[%clk 0:00:43]} 28. Kg1 {[%clk 0:00:13]}  Qg5 {[%clk 0:00:43]} 29. Bf1 {[%clk 0:00:11]}  h4 {[%clk 0:00:43]} 30. Kh2 {[%clk 0:00:11]}  hxg3+ {[%clk 0:00:34]} 31. fxg3 {[%clk 0:00:12]}  Kg7 {[%clk 0:00:34]} 32. Qg1 {[%clk 0:00:09]}  Rh8+ {[%clk 0:00:34]} 0-1


[Site "https://www.chess.com"]

[Event "Titled Tuesday Blitz July 26 Late 2022"]
[White "Nozdrachev, Leonid"]
[Black "Ai, Evan"]
[WhiteFideId "24113433"]
[BlackFideId "2094770"]
[WhiteElo "2100"]
[BlackElo "1963"]
[Result "1-0"]
[Round "04"]
[TimeControl "180+1"]
[Date "2022.07.27"]
[WhiteClock "0:00:05"]
[BlackClock "0:00:05"]

1. e4 {[%clk 0:03:00]}  e5 {[%clk 0:02:59]} 2. Nf3 {[%clk 0:02:59]}  Nc6 {[%clk 0:02:59]} 3. Bc4 {[%clk 0:02:58]}  Bc5 {[%clk 0:02:59]} 4. d3 {[%clk 0:02:57]}  Nf6 {[%clk 0:02:56]} 5. Bg5 {[%clk 0:02:57]}  h6 {[%clk 0:02:54]} 6. Bh4 {[%clk 0:02:56]}  g5 {[%clk 0:02:54]} 7. Bg3 {[%clk 0:02:56]}  d6 {[%clk 0:02:54]} 8. h4 {[%clk 0:02:54]}  g4 {[%clk 0:02:53]} 9. Nfd2 {[%clk 0:02:52]}  Nh5 {[%clk 0:02:53]} 10. Nf1 {[%clk 0:02:50]}  Qf6 {[%clk 0:02:52]} 11. Qd2 {[%clk 0:02:48]}  Nf4 {[%clk 0:02:20]} 12. Bxf4 {[%clk 0:02:46]}  exf4 {[%clk 0:02:20]} 13. Nc3 {[%clk 0:02:45]}  Ne5 {[%clk 0:02:02]} 14. Nd5 {[%clk 0:02:42]}  Qd8 {[%clk 0:01:57]} 15. Qxf4 {[%clk 0:02:37]}  Nxc4 {[%clk 0:01:57]} 16. Nf6+ {[%clk 0:02:31]}  Kf8 {[%clk 0:01:55]} 17. dxc4 {[%clk 0:02:31]}  Bd4 {[%clk 0:01:48]} 18. Nxg4 {[%clk 0:02:20]}  Bxb2 {[%clk 0:01:47]} 19. Rd1 {[%clk 0:02:14]}  h5 {[%clk 0:01:43]} 20. Nge3 {[%clk 0:02:05]}  Be6 {[%clk 0:01:28]} 21. Ng3 {[%clk 0:01:57]}  Bc3+ {[%clk 0:01:26]} 22. Kf1 {[%clk 0:01:55]}  Be5 {[%clk 0:01:23]} 23. Qf3 {[%clk 0:01:55]}  Bxg3 {[%clk 0:01:20]} 24. Qxg3 {[%clk 0:01:52]}  Qf6 {[%clk 0:01:20]} 25. c5 {[%clk 0:01:49]}  dxc5 {[%clk 0:01:15]} 26. Qxc7 {[%clk 0:01:48]}  Rc8 {[%clk 0:01:14]} 27. Qd6+ {[%clk 0:01:43]}  Kg7 {[%clk 0:01:12]} 28. e5 {[%clk 0:01:35]}  Qg6 {[%clk 0:01:10]} 29. Qe7 {[%clk 0:01:29]}  Bxa2 {[%clk 0:00:45]} 30. c4 {[%clk 0:01:26]}  Rhe8 {[%clk 0:00:42]} 31. Qxb7 {[%clk 0:01:22]}  Rcd8 {[%clk 0:00:39]} 32. Qb2 {[%clk 0:01:17]}  Rxd1+ {[%clk 0:00:38]} 33. Nxd1 {[%clk 0:01:18]}  Bxc4+ {[%clk 0:00:37]} 34. Kg1 {[%clk 0:01:17]}  Bd5 {[%clk 0:00:33]} 35. Ne3 {[%clk 0:01:16]}  Be6 {[%clk 0:00:33]} 36. Kh2 {[%clk 0:01:12]}  Qe4 {[%clk 0:00:32]} 37. Qc3 {[%clk 0:01:00]}  Qxh4+ {[%clk 0:00:31]} 38. Kg1 {[%clk 0:01:00]}  Qd4 {[%clk 0:00:31]} 39. Qc2 {[%clk 0:00:56]}  Qxe5 {[%clk 0:00:31]} 40. g4 {[%clk 0:00:53]}  Bxg4 {[%clk 0:00:28]} 41. Nxg4 {[%clk 0:00:51]}  hxg4 {[%clk 0:00:24]} 42. Qh7+ {[%clk 0:00:46]}  Kf6 {[%clk 0:00:24]} 43. Rh6+ {[%clk 0:00:46]}  Ke7 {[%clk 0:00:24]} 44. Qd3 {[%clk 0:00:40]}  Qe1+ {[%clk 0:00:24]} 45. Kg2 {[%clk 0:00:40]}  Qe5 {[%clk 0:00:24]} 46. Ra6 {[%clk 0:00:37]}  Rd8 {[%clk 0:00:24]} 47. Rxa7+ {[%clk 0:00:36]}  Ke8 {[%clk 0:00:24]} 48. Qh7 {[%clk 0:00:33]}  Qd5+ {[%clk 0:00:23]} 49. Kg1 {[%clk 0:00:31]}  Qd1+ {[%clk 0:00:22]} 50. Kh2 {[%clk 0:00:30]}  g3+ {[%clk 0:00:22]} 51. Kxg3 {[%clk 0:00:29]}  Rd3+ {[%clk 0:00:22]} 52. Kh2 {[%clk 0:00:19]}  Rh3+ {[%clk 0:00:07]} 53. Qxh3 {[%clk 0:00:18]}  Qd6+ {[%clk 0:00:06]} 54. Qg3 {[%clk 0:00:12]}  Qh6+ {[%clk 0:00:06]} 55. Kg2 {[%clk 0:00:10]}  Qc6+ {[%clk 0:00:05]} 56. Qf3 {[%clk 0:00:09]}  Qg6+ {[%clk 0:00:05]} 57. Kh1 {[%clk 0:00:07]}  Qh6+ {[%clk 0:00:05]} 58. Kg1 {[%clk 0:00:06]}  Qc1+ {[%clk 0:00:04]} 59. Kg2 {[%clk 0:00:05]}  Qg5+ {[%clk 0:00:05]} 60. Kf1 {[%clk 0:00:05]}  Qc1+ {[%clk 0:00:05]} 61. Ke2 {[%clk 0:00:06]}  Qc2+ {[%clk 0:00:05]} 62. Ke3 {[%clk 0:00:06]}  Qc3+ {[%clk 0:00:05]} 63. Ke4 {[%clk 0:00:06]}  Qd4+ {[%clk 0:00:05]} 64. Kf5 {[%clk 0:00:06]}  Kf8 {[%clk 0:00:05]} 65. Ra8+ {[%clk 0:00:05]}  Ke7 {[%clk 0:00:05]} 66. Qe4+ {[%clk 0:00:05]} 1-0


[Site "https://www.chess.com"]

[Event "Titled Tuesday Blitz July 26 Late 2022"]
[White "Ovezdurdyyeva, Jemal"]
[Black "Gaisinsky, Adam"]
[WhiteFideId "14001888"]
[BlackFideId "2620561"]
[WhiteElo "1946"]
[BlackElo "1965"]
[Result "0-1"]
[Round "04"]
[TimeControl "180+1"]
[Date "2022.07.27"]
[WhiteClock "0:00:02"]
[BlackClock "0:00:11"]

1. e4 {[%clk 0:03:00]}  e5 {[%clk 0:02:59]} 2. Nf3 {[%clk 0:03:00]}  Nc6 {[%clk 0:03:00]} 3. Bb5 {[%clk 0:03:01]}  a6 {[%clk 0:03:00]} 4. Ba4 {[%clk 0:03:00]}  Nf6 {[%clk 0:03:01]} 5. O-O {[%clk 0:02:59]}  Be7 {[%clk 0:03:02]} 6. c3 {[%clk 0:03:00]}  Nxe4 {[%clk 0:03:01]} 7. Re1 {[%clk 0:02:58]}  Nc5 {[%clk 0:02:57]} 8. Bxc6 {[%clk 0:02:58]}  dxc6 {[%clk 0:02:57]} 9. Nxe5 {[%clk 0:02:57]}  Nd3 {[%clk 0:02:54]} 10. Nxd3 {[%clk 0:02:53]}  Qxd3 {[%clk 0:02:54]} 11. Re3 {[%clk 0:02:46]}  Qg6 {[%clk 0:02:51]} 12. d4 {[%clk 0:02:43]}  Be6 {[%clk 0:02:51]} 13. Rg3 {[%clk 0:02:38]}  Qf5 {[%clk 0:02:48]} 14. Nd2 {[%clk 0:02:18]}  O-O-O {[%clk 0:02:43]} 15. Qf3 {[%clk 0:02:18]}  Bf6 {[%clk 0:02:37]} 16. Nb3 {[%clk 0:02:07]}  Rhe8 {[%clk 0:02:15]} 17. Bg5 {[%clk 0:01:54]}  Qxf3 {[%clk 0:01:54]} 18. gxf3 {[%clk 0:01:54]}  Bxg5 {[%clk 0:01:51]} 19. Rxg5 {[%clk 0:01:54]}  g6 {[%clk 0:01:49]} 20. Kg2 {[%clk 0:01:39]}  Bd5 {[%clk 0:01:30]} 21. Nc5 {[%clk 0:01:32]}  f6 {[%clk 0:01:25]} 22. Rg3 {[%clk 0:01:25]}  Re2 {[%clk 0:01:25]} 23. b3 {[%clk 0:01:24]}  Bf7 {[%clk 0:01:05]} 24. Ne4 {[%clk 0:01:13]}  f5 {[%clk 0:00:57]} 25. Ng5 {[%clk 0:01:12]}  Bg8 {[%clk 0:00:57]} 26. f4 {[%clk 0:01:11]}  Rde8 {[%clk 0:00:53]} 27. Nf3 {[%clk 0:00:54]}  Rc2 {[%clk 0:00:51]} 28. Ne5 {[%clk 0:00:54]}  Bd5+ {[%clk 0:00:47]} 29. Kf1 {[%clk 0:00:51]}  a5 {[%clk 0:00:44]} 30. Re3 {[%clk 0:00:44]}  a4 {[%clk 0:00:40]} 31. bxa4 {[%clk 0:00:27]}  b6 {[%clk 0:00:21]} 32. Ke1 {[%clk 0:00:22]}  Kb7 {[%clk 0:00:21]} 33. a3 {[%clk 0:00:20]}  Ra8 {[%clk 0:00:20]} 34. Nd3 {[%clk 0:00:19]}  Rxa4 {[%clk 0:00:16]} 35. Nb4 {[%clk 0:00:19]}  Rb2 {[%clk 0:00:13]} 36. Re7 {[%clk 0:00:17]}  Bc4 {[%clk 0:00:12]} 37. Rxh7 {[%clk 0:00:16]}  c5 {[%clk 0:00:11]} 38. dxc5 {[%clk 0:00:16]}  bxc5 {[%clk 0:00:11]} 39. Rg7 {[%clk 0:00:01]}  cxb4 {[%clk 0:00:11]} 40. cxb4 {[%clk 0:00:02]}  Re2+ {[%clk 0:00:11]} 41. Kd1 {[%clk 0:00:02]}  Rxf2 {[%clk 0:00:11]} 42. Rxg6 {[%clk 0:00:03]}  Rf1+ {[%clk 0:00:11]} 43. Kc2 {[%clk 0:00:02]}  Rxa1 {[%clk 0:00:11]} 0-1


[Site "https://www.chess.com"]